fUSD/lending_fUSD_20241026
["ID","MTS","AMOUNT","RATE_DAILY","PERIOD"]
[340875470,1729984232969,-500.0,0.0003698,5]
[340875471,1729984232978,-1761.04,0.00036989,2]
[340875472,1729984232989,-1761.04,0.00036999,2]
[340875473,1729984232999,-1761.04,0.00037009,2]
[340875474,1729984233009,-1761.04,0.00037018,2]
[340875475,1729984233018,-1761.04,0.00037028,2]
[340875476,1729984233027,-167.0,0.0003747,2]
[340875477,1729984233037,-1000.0,0.00037987,2]
[340875478,1729984233046,-996.61,0.00038128,2]
[340875479,1729984233055,-924.38888601,0.0003835,5]
[340875480,1729984233064,-810.0,0.00038401,2]
[340875481,1729984233074,-1252.0,0.00038401,2]
[340875482,1729984233083,-150.0,0.00038401,2]
[340875483,1729984233092,-1152.0,0.00038401,2]
[340875484,1729984233101,-452.428,0.00038401,2]
[340875485,1729984233110,-293.82,0.00038441,2]
[340875486,1729984233119,-167.0,0.00038667,2]
[340875487,1729984233128,-182.85,0.00038856,2]
[340875488,1729984233137,-167.0,0.00039864,2]
[340875489,1729984233146,-1500.0,0.0003999,2]
[340875490,1729984233155,-1000.0,0.0004,2]
[340875491,1729984233164,-293.82,0.00040188,2]
[340875492,1729984233174,-996.61,0.00040392,2]
[340875493,1729984233183,-150.0,0.00040662,2]
[340875494,1729984233192,-150.0,0.00040703,2]
[340875495,1729984233201,-150.0,0.00040854,2]
[340875496,1729984233211,-167.0,0.00041062,2]
[340875497,1729984233220,-645.91,0.0004109,3]
[340875498,1729984233229,-174.91200203,0.000411,2]
[340875499,1729984233239,-1435.08929203,0.000411,2]
[340875500,1729984233248,-376.70135462,0.000411,2]
[340875501,1729984233258,-903.32843613,0.000412,2]
[340875502,1729984233267,-357.5408542,0.00041209,2]
[340875503,1729984233276,-284.46816432,0.00041258,2]
[340875504,1729984233285,-4384.0,0.000413,3]
[340875505,1729984233294,-451.7876,0.00041301,2]
[340875506,1729984233303,-4916.67648495,0.00041301,15]
[340875507,1729984233312,-693.714,0.00041401,2]
[340875508,1729984233321,-1252.0,0.00041401,2]
[340875509,1729984233330,-618.58,0.00041401,2]
[340875510,1729984233339,-300.0,0.0004142,2]
[340875511,1729984233349,-150.0,0.00041497,2]
[340875512,1729984233358,-4916.67648492,0.00041595,15]
[340875513,1729984233369,-357.5408542,0.0004161,2]
[340875514,1729984233378,-182.85,0.00041818,2]
[340875515,1729984233387,-4916.67648492,0.00041888,15]
[340875516,1729984233396,-357.54085422,0.00041891,2]
[340875517,1729984233406,-2500.0,0.000419,2]
[340875518,1729984233416,-293.82,0.00041936,2]
[340875519,1729984233425,-160.42393202,0.00041973,7]
[340875520,1729984233435,-160.28885357,0.00041973,10]
[340875521,1729984233445,-500.0,0.00041999,2]
[340875522,1729984233454,-72471.13485724,0.00042,2]
[340875523,1729984233463,-4729.50550613,0.00042,2]
[340875524,1729984233472,-344.27288464,0.00042,2]
[340875525,1729984233482,-1366.5256898,0.00042002,2]
[340875526,1729984233491,-2742.6310215,0.00042002,2]
[340875527,1729984233501,-955.4266629,0.00042002,2]
[340875528,1729984233510,-3895.9160298,0.00042002,2]
[340875529,1729984233520,-150.0,0.00042096,2]
[340875530,1729984233529,-3296.1575,0.00042113,2]
[340875531,1729984233539,-405.05,0.00042157,120]
[340875532,1729984233548,-4916.67648492,0.00042182,15]
[340875533,1729984233558,-167.0,0.00042259,2]
[340875534,1729984233567,-1000.0,0.00042321,2]
[340875535,1729984233576,-2000.0,0.00042331,2]
[340875536,1729984233585,-150.0,0.00042333,2]
[340875537,1729984233595,-157.32,0.00042342,2]
[340875538,1729984233604,-152.42,0.00042374,2]
[340875539,1729984233613,-2045.7576,0.000424,2]
[340875540,1729984233622,-150.0,0.00042474,2]
[340875541,1729984233631,-4916.67648492,0.00042476,15]
[340875542,1729984233641,-11528.0,0.000425,5]
[340875543,1729984233651,-996.61,0.00042656,2]
[340875544,1729984233660,-4916.67648492,0.00042769,15]
[340875545,1729984233669,-566.42,0.000428,7]
[340875546,1729984233684,-1439.05406125,0.00042884,7]
[340875547,1729984233694,-500.0,0.000429,15]
[340875548,1729984233703,-300.0,0.000429,15]
[340875549,1729984233712,-1100.0,0.00043,15]
[340875550,1729984233721,-4916.67648492,0.00043063,15]
[340875551,1729984233730,-1700.0,0.000431,15]
[340875552,1729984233740,-150.0,0.00043127,2]
[340875553,1729984233749,-173.102706,0.00043148,120]
[340875554,1729984233758,-2300.0,0.000432,15]
[340875555,1729984233768,-222.1257,0.00043216,2]
[340875556,1729984233777,-2891.3238,0.00043216,2]
[340875557,1729984233786,-1611.0176,0.00043216,2]
[340875558,1729984233796,-502.2264,0.00043216,2]
[340875559,1729984233805,-903.32843612,0.00043216,2]
[340875560,1729984233814,-172.102706,0.00043248,120]
[340875561,1729984233823,-2900.0,0.000433,15]
[340875562,1729984233834,-500.0,0.00043316,7]
[340875563,1729984233843,-500.0,0.00043316,7]
[340875564,1729984233852,-500.0,0.00043316,7]
[340875565,1729984233862,-500.0,0.00043316,7]
[340875566,1729984233872,-500.0,0.00043316,7]
[340875567,1729984233882,-500.0,0.00043316,7]
[340875568,1729984233892,-500.0,0.00043316,7]
[340875569,1729984233901,-500.0,0.00043316,7]
[340875570,1729984233911,-500.0,0.00043316,7]
[340875571,1729984233920,-500.0,0.00043316,7]
[340875572,1729984233929,-500.0,0.00043316,7]
[340875573,1729984233938,-500.0,0.00043316,7]
[340875574,1729984233947,-500.0,0.00043316,7]
[340875575,1729984233956,-500.0,0.00043316,7]
[340875576,1729984233966,-500.0,0.00043316,7]
[340875577,1729984233975,-500.0,0.00043316,7]
[340875578,1729984233985,-500.0,0.00043316,7]
[340875579,1729984233995,-500.0,0.00043316,7]
[340875580,1729984234004,-500.0,0.00043316,7]
[340875581,1729984234013,-500.0,0.00043316,7]
[340875582,1729984234022,-500.0,0.00043316,7]
[340875583,1729984234032,-500.0,0.00043316,7]
[340875584,1729984234041,-500.0,0.00043316,7]
[340875585,1729984234051,-500.0,0.00043316,7]
[340875586,1729984234060,-500.0,0.00043316,7]
[340875587,1729984234069,-500.0,0.00043316,7]
[340875588,1729984234078,-500.0,0.00043316,7]
[340875589,1729984234087,-500.0,0.00043316,7]
[340875590,1729984234096,-648.59,0.00043316,7]
[340875591,1729984234106,-4916.67648492,0.00043357,15]
[340875592,1729984234115,-500.0,0.000434,15]
[340875593,1729984234124,-500.0,0.000434,2]
[340875594,1729984234133,-160.31,0.00043414,2]
[340875595,1729984234221,-150.0,0.00043458,2]
[340875596,1729984234231,-500.0,0.000435,15]
[340875597,1729984234242,-214.89607305,0.0004359,15]
[340875598,1729984234251,-500.0,0.000436,15]
[340875599,1729984234261,-2520.47261892,0.0004361,2]
[340875600,1729984234270,-150.0,0.00043643,2]
[340875601,1729984234279,-4916.67648492,0.0004365,15]
[340875602,1729984234289,-150.0,0.00043654,2]
[340875603,1729984234298,-150.0,0.00043654,2]
[340875604,1729984234308,-150.0,0.00043657,2]
[340875605,1729984234317,-150.0,0.0004366,2]
[340875606,1729984234327,-150.0,0.00043666,2]
[340875607,1729984234336,-150.0,0.00043668,2]
[340875608,1729984234345,-150.0,0.00043668,2]
[340875609,1729984234355,-5681.37015363,0.0004367,10]
[340875610,1729984234365,-150.0,0.0004367,2]
[340875611,1729984234374,-150.0,0.00043671,2]
[340875612,1729984234384,-150.0,0.00043672,2]
[340875613,1729984234393,-150.0,0.00043675,2]
[340875614,1729984234402,-245000.0,0.0004368,2]
[340875615,1729984234411,-169.60500023,0.0004368,2]
[340875616,1729984234420,-150.0,0.00043683,2]
[340875617,1729984234430,-150.0,0.00043684,2]
[340875618,1729984234439,-150.0,0.00043687,2]
[340875619,1729984234449,-150.0,0.00043688,2]
[340875620,1729984234458,-9468.95025605,0.0004369,10]
[340875621,1729984234467,-150.0,0.0004369,2]
[340875622,1729984234476,-150.0,0.00043691,2]
[340875623,1729984234486,-150.0,0.00043696,2]
[340875624,1729984234495,-150.0,0.00043698,2]
[340875625,1729984234504,-38288.61600679,0.000437,2]
[340875626,1729984234518,-61711.38399321,0.000437,2]
[340875627,1729984234527,-500.0,0.000437,15]
[340875628,1729984234537,-215.73203112,0.000437,20]
[340875629,1729984234546,-150.0,0.00043705,2]
[340875630,1729984234556,-150.0,0.00043712,2]
[340875631,1729984234566,-150.0,0.00043716,2]
[340875632,1729984234575,-150.0,0.0004372,2]
[340875633,1729984234585,-150.0,0.00043723,2]
[340875634,1729984234595,-150.0,0.00043729,2]
[340875635,1729984234604,-150.0,0.00043737,2]
[340875636,1729984234614,-166.44128582,0.00043747,28]
[340875637,1729984234623,-150.0,0.00043747,2]
[340875638,1729984234633,-150.0,0.00043749,2]
[340875639,1729984234643,-150.0,0.00043754,2]
[340875640,1729984234653,-150.0,0.00043758,2]
[340875641,1729984234662,-150.0,0.00043768,2]
[340875642,1729984234671,-150.0,0.00043768,2]
[340875643,1729984234682,-150.0,0.00043769,2]
[340875644,1729984234691,-150.0,0.00043772,2]
[340875645,1729984234701,-150.0,0.00043773,2]
[340875646,1729984234711,-167.912077,0.0004378,13]
[340875647,1729984234720,-1994.64772429,0.0004378,2]
[340875648,1729984234730,-249.88523154,0.0004378,2]
[340875649,1729984234744,-4822.71541858,0.0004378,2]
[340875650,1729984234754,-215.73203112,0.0004378,20]
[340875651,1729984234763,-1391.62785382,0.0004378,2]
[340875652,1729984234773,-665.2503283,0.0004378,2]
[340875653,1729984234782,-159.9711616,0.0004378,2]
[340875654,1729984234792,-1138.16896825,0.0004378,2]
[340875655,1729984234802,-150.0,0.00043783,2]
[340875656,1729984234811,-150.0,0.00043783,2]
[340875657,1729984234821,-150.0,0.00043788,2]
[340875658,1729984234833,-11362.7403073,0.0004379,10]
[340875659,1729984234842,-159.02075616,0.00043792,2]
[340875660,1729984234851,-150.0,0.00043792,2]
[340875661,1729984234861,-150.0,0.00043792,2]
[340875662,1729984234870,-58079.46874069,0.000438,120]
[340875663,1729984234882,-277.5783648,0.000438,120]
[340875732,1729984237764,-600.0,0.00043,15]
[340875734,1729984237774,-480.68345125,0.000431,15]
[340875735,1729984237786,-419.31654875,0.000431,15]
[340875736,1729984237796,-343.35196288,0.000432,15]
[340875737,1729984237807,-856.64803712,0.000432,15]
[340875738,1729984237817,-43939.95307493,0.000438,120]
[340875739,1729984237828,-1267.0,0.000438,15]
[340875740,1729984237841,-150.0,0.000438,48]
[340875741,1729984237850,-2529.56399632,0.0004381,3]
[340875742,1729984237860,-150.0,0.00043815,2]
[340875743,1729984237870,-150.0,0.00043817,2]
[340875744,1729984237880,-150.0,0.0004382,2]
[340875745,1729984237890,-150.0,0.00043822,2]
[340875746,1729984237899,-150.0,0.00043822,2]
[340875747,1729984237909,-150.0,0.00043825,2]
[340875748,1729984237919,-150.0,0.00043838,2]
[340875749,1729984237929,-150.0,0.00043842,2]
[340875750,1729984237938,-150.0,0.00043845,2]
[340875751,1729984237948,-634.80999332,0.00043847,7]
[340875752,1729984237958,-150.0,0.00043847,2]
[340875753,1729984237967,-150.0,0.00043847,2]
[340875754,1729984237977,-1500.0,0.00043852,7]
[340875755,1729984237987,-150.0,0.00043854,2]
[340875756,1729984237997,-150.0,0.00043856,2]
[340875757,1729984238006,-150.0,0.00043857,2]
[340875758,1729984238015,-150.0,0.0004386,2]
[340875759,1729984238024,-150.0,0.00043861,2]
[340875760,1729984238033,-249.88523154,0.00043862,2]
[340875761,1729984238043,-4822.71541858,0.00043862,2]
[340875762,1729984238053,-150.0,0.00043862,2]
[340875763,1729984238062,-665.25032828,0.00043862,2]
[340875764,1729984238072,-159.9711616,0.00043862,2]
[340875765,1729984238081,-1138.16896825,0.00043862,2]
[340875766,1729984238090,-1722.57838986,0.00043863,10]
[340875767,1729984238102,-3958.79176377,0.00043863,10]
[340875768,1729984238112,-150.0,0.00043865,2]
[340875769,1729984238121,-28406.8507681,0.0004387,10]
[340875770,1729984238131,-169.60500023,0.0004387,2]
[340875771,1729984238140,-150.0,0.00043871,2]
[340875772,1729984238150,-500.0,0.00043873,5]
[340875773,1729984238159,-502.79120075,0.00043873,7]
[340875774,1729984238168,-58519.61174201,0.00043873,2]
[340875775,1729984238178,-150.0,0.00043873,2]
[340875776,1729984238187,-150.0,0.00043877,2]
[340875777,1729984238197,-150.0,0.00043878,2]
[340875778,1729984238207,-300.0,0.00043879,10]
[340875779,1729984238216,-1230.51542116,0.00043879,60]
[340875780,1729984238226,-228.37067859,0.00043879,18]
[340875781,1729984238235,-212485.58514661,0.0004388,2]
[340875782,1729984238247,-8517.24807991,0.0004388,2]
[340875783,1729984238259,-67718.11450732,0.0004388,2]
[340875784,1729984238270,-13251.94490833,0.0004388,2]
[340875785,1729984238281,-2033.1063576,0.0004388,2]
[340875786,1729984238292,-2994.43922409,0.0004388,2]
[340875787,1729984238307,-509.16789362,0.0004388,2]
[340875788,1729984238318,-6214.73959699,0.0004388,2]
[340875789,1729984238330,-1019.83248483,0.0004388,2]
[340875790,1729984238341,-618.74932003,0.0004388,2]
[340875791,1729984238352,-55886.60260614,0.0004388,2]
[340875792,1729984238363,-2043.19999995,0.0004388,2]
[340875793,1729984238374,-88859.86473479,0.0004388,2]
[340875802,1729984239790,-150.46,0.00042642,2]
[340875803,1729984239800,-229.025462,0.000433,15]
[340875804,1729984239811,-1270.974538,0.000433,15]
[340875805,1729984239821,-1802.75435559,0.000438,2]
[340875806,1729984239833,-186.64287724,0.000438,2]
[340875807,1729984239844,-164297.21684232,0.0004388,2]
[340875808,1729984239853,-125623.59607798,0.0004388,2]
[340875809,1729984239863,-83348.20398924,0.0004388,2]
[340875810,1729984239956,-616.89321857,0.0004388,2]
[340875811,1729984239967,-1986.34492326,0.0004388,2]
[340875812,1729984239978,-304.33735203,0.0004388,2]
[340875813,1729984239990,-870.24000001,0.0004388,2]
[340875814,1729984240001,-1227.9599996,0.0004388,2]
[340875815,1729984240012,-400.075,0.0004388,2]
[340875816,1729984240023,-69955.36736861,0.0004388,2]
[340875817,1729984240032,-196.07587953,0.0004388,30]
[340875818,1729984240041,-73211.32510358,0.0004388,2]
[340875819,1729984240052,-701.66503495,0.0004388,2]
[340875820,1729984240063,-1787.55805162,0.0004388,2]
[340875821,1729984240074,-1663.5002,0.0004388,2]
[340875822,1729984240085,-1378.87335748,0.0004388,2]
[340875823,1729984240096,-1923.3714484,0.0004388,2]
[340875824,1729984240107,-478.75263346,0.0004388,2]
[340875825,1729984240118,-7323.92594344,0.0004388,2]
[340875826,1729984240129,-677.01,0.0004388,2]
[340875827,1729984240140,-476.45777715,0.0004388,2]
[340875828,1729984240151,-22580.97071843,0.0004388,2]
[340875829,1729984240162,-7184.67251903,0.0004388,2]
[340875830,1729984240174,-11809.42168032,0.0004388,2]
[340875832,1729984240185,-722.19529931,0.0004388,2]
[340875834,1729984240196,-3436.19398031,0.0004388,2]
[340875835,1729984240207,-1095.51901377,0.0004388,2]
[340875836,1729984240222,-154656.94697804,0.0004388,2]
[340875837,1729984240232,-414.55552696,0.0004388,2]
[340875838,1729984240243,-844.46840723,0.0004388,2]
[340875839,1729984240254,-851.77106828,0.0004388,2]
[340875840,1729984240265,-369.51016632,0.0004388,2]
[340875841,1729984240276,-621.51461131,0.0004388,2]
[340875843,1729984240287,-13471.89695095,0.0004388,2]
[340875845,1729984240298,-602.7973578,0.0004388,2]
[340875847,1729984240309,-10682.73555237,0.0004388,2]
[340875886,1729984242718,-501.91363577,0.00042722,10]
[340875887,1729984242728,-500.0,0.00042722,5]
[340875888,1729984242737,-300.0,0.000434,15]
[340875889,1729984242746,-2601.18779003,0.0004388,2]
[340875891,1729984242985,-300.0,0.000435,15]
[340875892,1729984242994,-17616.75300949,0.0004388,2]
[340875893,1729984243008,-2405.48835073,0.0004388,2]
[340875904,1729984245892,-1116.63719166,0.00042924,5]
[340875905,1729984245902,-300.0,0.000436,15]
[340875906,1729984245913,-1331537.91271715,0.0004388,2]
[340875907,1729984245922,-12518.55406092,0.0004388,30]
[340875908,1729984245931,-5000.0,0.0004388,14]
[340875909,1729984245940,-5000.0,0.0004388,14]
[340875910,1729984245950,-5000.0,0.0004388,14]
[340875911,1729984245958,-5000.0,0.0004388,14]
[340875912,1729984245968,-5000.0,0.0004388,14]
[340875913,1729984245978,-5000.0,0.0004388,14]
[340875914,1729984245987,-5000.0,0.0004388,14]
[340875915,1729984245999,-5000.0,0.0004388,14]
[340875916,1729984246009,-3872.837952,0.0004388,14]
[340875917,1729984246018,-150.0,0.00043887,2]
[340875918,1729984246028,-150.0,0.00043889,2]
[340875919,1729984246038,-300.0,0.00043897,10]
[340875920,1729984246047,-300.0,0.00043898,10]
[340875921,1729984246062,-300.0,0.00043899,10]
[340875922,1729984246076,-1736.53,0.000439,30]
[340875923,1729984246088,-1814.08,0.000439,60]
[340875924,1729984246099,-150.0,0.000439,2]
[340875925,1729984246110,-150.0,0.00043906,2]
[340875926,1729984246123,-150.0,0.00043906,2]
[340875927,1729984246135,-150.0,0.00043909,2]
[340875929,1729984246149,-150.0,0.0004391,2]
[340875931,1729984246162,-150.0,0.00043912,2]
[340875933,1729984246175,-166.44128582,0.00043915,28]
[340875935,1729984246189,-150.0,0.00043915,2]
[340875937,1729984246202,-150.0,0.0004392,2]
[340875938,1729984246214,-150.0,0.00043922,2]
[340875939,1729984246227,-150.0,0.00043924,2]
[340875940,1729984246240,-150.0,0.0004393,2]
[340875941,1729984246252,-4916.67648492,0.00043944,15]
[340875942,1729984246265,-4822.71541858,0.00043944,2]
[340875943,1729984246279,-665.25032828,0.00043944,2]
[340875944,1729984246291,-159.9711616,0.00043944,2]
[340875945,1729984246301,-1138.16896825,0.00043944,2]
[340875946,1729984246312,-154.52467995,0.00043946,7]
[340875947,1729984246324,-20328.00427351,0.00044,60]
[340875948,1729984246336,-150.0,0.00044,120]
[340875949,1729984246348,-600.0,0.00044,120]
[340875950,1729984246361,-77278.5230659,0.00044,2]
[340875951,1729984246374,-1182.7258983,0.00044014,2]
[340875952,1729984246387,-998.9261069,0.00044014,2]
[340875953,1729984246400,-815.1263154,0.00044014,2]
[340875954,1729984246413,-631.326524,0.00044014,2]
[340875955,1729984246423,-2373.7429622,0.00044014,2]
[340875956,1729984246434,-2004.8549028,0.00044014,2]
[340875957,1729984246444,-1635.9668435,0.00044014,2]
[340875958,1729984246456,-1267.0787841,0.00044014,2]
[340875959,1729984246469,-827.4602449,0.00044014,2]
[340875960,1729984246482,-699.4938269,0.00044014,2]
[340875961,1729984246493,-571.5274088,0.00044014,2]
[340875962,1729984246506,-443.5609908,0.00044014,2]
[340875963,1729984246517,-3374.1110199,0.00044014,2]
[340875964,1729984246528,-2852.3060101,0.00044014,2]
[340875965,1729984246540,-2330.5010003,0.00044014,2]
[340875966,1729984246551,-1808.6959905,0.00044014,2]
[340875967,1729984246562,-151.0,0.00044015,14]
[340875968,1729984246572,-227.166135,0.00044015,14]
[340875969,1729984246585,-151.0,0.00044015,14]
[340875970,1729984246597,-151.0,0.00044015,14]
[340875971,1729984246608,-151.0,0.00044015,14]
[340875972,1729984246620,-151.0,0.00044015,14]
[340875973,1729984246631,-151.0,0.00044015,14]
[340875974,1729984246643,-243.596867,0.00044015,7]
[340875975,1729984246655,-243.596867,0.00044015,7]
[340875976,1729984246666,-2000.0,0.00044015,7]
[340875977,1729984246677,-200.0,0.00044015,7]
[340875978,1729984246688,-151.0,0.00044015,14]
[340875979,1729984246700,-151.0,0.00044015,14]
[340875980,1729984246712,-151.0,0.00044015,14]
[340875981,1729984246723,-151.0,0.00044015,14]
[340875982,1729984246735,-151.0,0.00044015,14]
[340875983,1729984246746,-151.0,0.00044015,14]
[340875984,1729984246757,-151.0,0.00044015,7]
[340875985,1729984246769,-151.0,0.00044015,7]
[340875986,1729984246781,-151.0,0.00044015,14]
[340875987,1729984246792,-171.085769,0.00044015,14]
[340875988,1729984246804,-151.0,0.00044015,14]
[340875989,1729984246815,-267.517882,0.00044015,14]
[340875990,1729984246827,-151.0,0.00044015,14]
[340875991,1729984246839,-151.0,0.00044015,14]
[340875992,1729984246850,-151.0,0.00044015,14]
[340875993,1729984246861,-151.0,0.00044015,14]
[340875994,1729984246873,-151.0,0.00044015,14]
[340875995,1729984246885,-500.0,0.00044015,2]
[340875996,1729984246897,-12518.55406092,0.00044015,30]
[340875997,1729984246909,-12518.55406092,0.00044015,30]
[340875998,1729984246921,-12518.55406092,0.00044015,30]
[340875999,1729984246936,-12518.55406092,0.00044015,30]
[340876000,1729984246947,-151.0,0.00044015,2]
[340876001,1729984246957,-239.12831685,0.00044015,2]
[340876002,1729984246967,-414046.17337547,0.00044044,20]
[340876006,1729985119824,650.0,9e-05,2]
[340876007,1729985119844,800.0,9e-05,2]
[340876008,1729985119865,800.0,9e-05,2]
[340876009,1729985119885,359.73554977,9e-05,2]
[340876010,1729985129901,440.26445023,0.000101,2]
[340876011,1729985129921,800.0,0.000101,2]
[340876012,1729985129942,800.0,0.000101,2]
[340876013,1729985129963,800.0,0.000101,2]
[340876014,1729985129983,800.0,0.000101,2]
[340876015,1729985130004,800.0,0.000101,2]
[340876016,1729985130025,500.0,0.000101,2]
[340876017,1729985130049,17297.3553962,0.000101,2]
[340876018,1729985135120,150.08309927,0.0001,2]
[340876019,1729985137202,19750.0,9e-05,2]
[340876020,1729985156042,522.05952011,6.94e-05,2]
[340876021,1729985163231,150.0,9e-05,2]
[340876022,1729985163253,11.50471837,9e-05,2]
[340876023,1729985240281,205.0,9.8e-05,2]
[340876024,1729985244702,246.61359293,0.000101,2]
[340876025,1729985280419,150.0,0.0001,2]
[340876026,1729985280441,150.0,0.0001,2]
[340876027,1729985280461,150.0,0.0001,2]
[340876028,1729985280481,150.0,0.0001,2]
[340876029,1729985280500,288.49528163,0.0001,2]
[340876030,1729985280521,5784.38831647,0.0001,2]
[340876034,1729985319847,212.39219077,0.0001,2]
[340876043,1729985431935,-682.0,0.00014409,2]
[340876045,1729985431944,-150.0,0.0001454,2]
[340876047,1729985431954,-150.0,0.00014899,2]
[340876048,1729985431963,-1075.809,0.000149,2]
[340876049,1729985431972,-2011.7771,0.000149,2]
[340876050,1729985431981,-2330.17800127,0.000149,2]
[340876051,1729985431990,-686.9277467,0.000149,2]
[340876052,1729985431999,-2500.0,0.000149,2]
[340876053,1729985432008,-1468.65967455,0.000149,2]
[340876054,1729985432019,-1248.2176,0.000149,2]
[340876055,1729985432028,-1076.63,0.00014946,2]
[340876056,1729985432038,-429.9,0.00014959,14]
[340876057,1729985432047,-500.0,0.00014973,2]
[340876058,1729985432056,-500.0,0.00014973,2]
[340876059,1729985432065,-211.60284881,0.0001499,3]
[340876060,1729985432076,-548.94239584,0.0001499,3]
[340876061,1729985432086,-171.16401434,0.00014999,2]
[340876062,1729985432095,-500.0,0.00014999,2]
[340876063,1729985432103,-247.76683415,0.00014999,2]
[340876064,1729985432114,-97.70971061,0.00014999,2]
[340876065,1729985432123,-500.0,0.00014999,2]
[340876066,1729985432132,-7.27028939,0.00014999,2]
[340876067,1729985432143,-492.72971061,0.00014999,2]
[340876068,1729985432152,-500.0,0.00014999,2]
[340876069,1729985432161,-500.0,0.00014999,2]
[340876070,1729985432171,-500.0,0.00014999,2]
[340876071,1729985432180,-500.0,0.00014999,2]
[340876072,1729985432189,-500.0,0.00014999,2]
[340876073,1729985432197,-500.0,0.00014999,2]
[340876074,1729985432207,-500.0,0.00014999,2]
[340876075,1729985432215,-500.0,0.00014999,2]
[340876076,1729985432224,-46.56677347,0.00014999,2]
[340876077,1729985432235,-453.43322653,0.00014999,2]
[340876078,1729985432244,-500.0,0.00014999,2]
[340876079,1729985432253,-500.0,0.00014999,2]
[340876080,1729985432262,-500.0,0.00014999,2]
[340876082,1729985432277,-500.0,0.00014999,2]
[340876084,1729985432286,-500.0,0.00014999,2]
[340876086,1729985432296,-500.0,0.00014999,2]
[340876088,1729985432304,-500.0,0.00014999,2]
[340876089,1729985432313,-293.86926909,0.00014999,2]
[340876090,1729985432322,-500.0,0.00014999,2]
[340876091,1729985432331,-500.0,0.00014999,2]
[340876092,1729985432340,-500.0,0.00014999,2]
[340876093,1729985432349,-500.0,0.00014999,2]
[340876094,1729985432358,-500.0,0.00014999,2]
[340876095,1729985432368,-500.0,0.00014999,2]
[340876096,1729985432381,-500.0,0.00014999,2]
[340876097,1729985432390,-500.0,0.00014999,2]
[340876098,1729985432399,-500.0,0.00014999,2]
[340876099,1729985432409,-372.34969816,0.00014999,2]
[340876100,1729985432418,-500.0,0.00014999,2]
[340876101,1729985432429,-500.0,0.00014999,2]
[340876102,1729985432438,-500.0,0.00014999,2]
[340876103,1729985432448,-500.0,0.00014999,2]
[340876104,1729985432458,-500.0,0.00014999,2]
[340876105,1729985432467,-252.93890871,0.00014999,2]
[340876106,1729985432477,-500.0,0.00014999,2]
[340876107,1729985432486,-500.0,0.00014999,2]
[340876108,1729985432495,-500.0,0.00014999,2]
[340876109,1729985432504,-500.0,0.00014999,2]
[340876110,1729985432614,-500.0,0.00014999,2]
[340876111,1729985432627,-500.0,0.00014999,2]
[340876112,1729985432636,-500.0,0.00014999,2]
[340876113,1729985432647,-500.0,0.00014999,2]
[340876114,1729985432658,-500.0,0.00014999,2]
[340876115,1729985432669,-500.0,0.00014999,2]
[340876116,1729985432679,-500.0,0.00014999,2]
[340876117,1729985432689,-500.0,0.00014999,2]
[340876118,1729985432698,-500.0,0.00014999,2]
[340876119,1729985432707,-500.0,0.00014999,2]
[340876120,1729985432718,-500.0,0.00014999,2]
[340876121,1729985432729,-500.0,0.00014999,2]
[340876122,1729985432739,-500.0,0.00014999,2]
[340876123,1729985432750,-500.0,0.00014999,2]
[340876124,1729985432759,-194.94105961,0.00015,2]
[340876125,1729985432771,-1616016.84639734,0.00015,2]